Department family,Entity,Allocation Date,Expense type,Expense Area,Supplier,Transaction Number,Amount in Sterling,
Government Equalities Office,Equality and Human Rights Commission,05/10/2011,Accommodation,Regulation - Policy and Ops - Public,Expotel,201210021,564.52,
Government Equalities Office,Equality and Human Rights Commission,05/10/2011,Accommodation,Scotland - Directorate,Expotel,201210022,578.36,
Government Equalities Office,Equality and Human Rights Commission,05/10/2011,Accommodation,Corporate Management - Finance,Expotel,201210023,616.58,
Government Equalities Office,Equality and Human Rights Commission,05/10/2011,Accommodation,Legal - Legal Policy,Expotel,201210024,1183.63,
Government Equalities Office,Equality and Human Rights Commission,05/10/2011,Accommodation,Corporate Management - People,Expotel,201210025,2012.06,
Government Equalities Office,Equality and Human Rights Commission,25/10/2011,Agency Staff,Corporate Management - ICT,Badenoch & Clark,iPOS Invoice 42614,1095.41,
Government Equalities Office,Equality and Human Rights Commission,19/10/2011,Agency Staff,Corporate Management - ICT,Badenoch & Clark,iPOS Invoice 42467,1102.51,
Government Equalities Office,Equality and Human Rights Commission,11/10/2011,Agency Staff,Corporate Management - Finance,Badenoch & Clark,iPOS Invoice 42311,1308.42,
Government Equalities Office,Equality and Human Rights Commission,11/10/2011,Agency Staff,Corporate Management - Finance,Badenoch & Clark,iPOS Invoice 42312,1308.42,
Government Equalities Office,Equality and Human Rights Commission,11/10/2011,Agency Staff,Corporate Management - Finance,Badenoch & Clark,iPOS Invoice 42336,1308.42,
Government Equalities Office,Equality and Human Rights Commission,25/10/2011,Agency Staff,Corporate Management - Finance,Badenoch & Clark,iPOS Invoice 42602,1308.42,
Government Equalities Office,Equality and Human Rights Commission,25/10/2011,Agency Staff,Corporate Management - Finance,Badenoch & Clark,iPOS Invoice 42603,1308.42,
Government Equalities Office,Equality and Human Rights Commission,11/10/2011,Agency Staff,Corporate Management - People,Digby Morgan Consulting Ltd,iPOS Invoice 42319,18112.50,
Government Equalities Office,Equality and Human Rights Commission,25/10/2011,Agency Staff,Intelligence & Engagement - External Affairs,Edenbrown,iPOS Invoice 42585,680.50,
Government Equalities Office,Equality and Human Rights Commission,11/10/2011,Agency Staff,Intelligence & Engagement - External Affairs,Edenbrown,iPOS Invoice 42305,850.62,
Government Equalities Office,Equality and Human Rights Commission,11/10/2011,Agency Staff,Intelligence & Engagement - External Affairs,Edenbrown,iPOS Invoice 42325,850.62,
Government Equalities Office,Equality and Human Rights Commission,11/10/2011,Agency Staff,Intelligence & Engagement - External Affairs,Edenbrown,iPOS Invoice 42378,850.62,
Government Equalities Office,Equality and Human Rights Commission,11/10/2011,Agency Staff,Corporate Management - People,Edenbrown,iPOS Invoice 42304,1755.66,
Government Equalities Office,Equality and Human Rights Commission,25/10/2011,Agency Staff,Corporate Management - People,Edenbrown,iPOS Invoice 42597,1755.66,
Government Equalities Office,Equality and Human Rights Commission,11/10/2011,Agency Staff,Corporate Management - Turnaround,Edenbrown,iPOS Invoice 42303,2117.64,
Government Equalities Office,Equality and Human Rights Commission,11/10/2011,Agency Staff,Corporate Management - Turnaround,Edenbrown,iPOS Invoice 42323,2117.64,
Government Equalities Office,Equality and Human Rights Commission,11/10/2011,Agency Staff,Corporate Management - Turnaround,Edenbrown,iPOS Invoice 42377,2117.64,
Government Equalities Office,Equality and Human Rights Commission,25/10/2011,Agency Staff,Corporate Management - People,Edenbrown,iPOS Invoice 42596,4915.85,
Government Equalities Office,Equality and Human Rights Commission,11/10/2011,Agency Staff,Regulation - Group Directorate,Edenbrown,iPOS Invoice 42398,5304.00,
Government Equalities Office,Equality and Human Rights Commission,11/10/2011,Agency Staff,Regulation - Group Directorate,Edenbrown,iPOS Invoice 42399,12199.20,
Government Equalities Office,Equality and Human Rights Commission,11/10/2011,Agency Staff,Regulation - Group Directorate,Edenbrown,iPOS Invoice 42397,33415.20,
Government Equalities Office,Equality and Human Rights Commission,19/10/2011,Agency Staff,Corporate Management - Finance,Hudson Global Resources Ltd,iPOS Invoice 42468,1283.36,
Government Equalities Office,Equality and Human Rights Commission,11/10/2011,Agency Staff,Regulation - Policy and Ops - Private,Hudson Global Resources Ltd,iPOS Invoice 42310,1420.34,
Government Equalities Office,Equality and Human Rights Commission,11/10/2011,Agency Staff,Regulation - Policy and Ops - Private,Hudson Global Resources Ltd,iPOS Invoice 42338,1420.34,
Government Equalities Office,Equality and Human Rights Commission,19/10/2011,Agency Staff,Corporate Management - Finance,Hudson Global Resources Ltd,iPOS Invoice 42473,1711.15,
Government Equalities Office,Equality and Human Rights Commission,19/10/2011,Agency Staff,Corporate Management - Finance,Hudson Global Resources Ltd,iPOS Invoice 42470,2138.94,
Government Equalities Office,Equality and Human Rights Commission,19/10/2011,Agency Staff,Corporate Management - Finance,Hudson Global Resources Ltd,iPOS Invoice 42471,2138.94,
Government Equalities Office,Equality and Human Rights Commission,19/10/2011,Agency Staff,Corporate Management - Finance,Hudson Global Resources Ltd,iPOS Invoice 42472,2138.94,
Government Equalities Office,Equality and Human Rights Commission,19/10/2011,Agency Staff,Corporate Management - Finance,Hudson Global Resources Ltd,iPOS Invoice 42469,2138.94,
Government Equalities Office,Equality and Human Rights Commission,19/10/2011,Agency Staff,Regulation - Policy and Ops - Private,Hudson Global Resources Ltd,iPOS Invoice 42474,2367.24,
Government Equalities Office,Equality and Human Rights Commission,25/10/2011,Agency Staff,Regulation - Policy and Ops - Private,Hudson Global Resources Ltd,iPOS Invoice 42589,2367.24,
Government Equalities Office,Equality and Human Rights Commission,19/10/2011,Agency Staff,Corporate Management - Finance,Methods Consulting,iPOS Invoice 42479,8785.39,
Government Equalities Office,Equality and Human Rights Commission,19/10/2011,Agency Staff,Intelligence & Engagement - Stakeholder Relations,Morgan Law Partners LLP,iPOS Invoice 42447,758.88,
Government Equalities Office,Equality and Human Rights Commission,11/10/2011,Agency Staff,Intelligence & Engagement - Stakeholder Relations,Morgan Law Partners LLP,iPOS Invoice 42321,847.42,
Government Equalities Office,Equality and Human Rights Commission,11/10/2011,Agency Staff,Intelligence & Engagement - Stakeholder Relations,Morgan Law Partners LLP,iPOS Invoice 42308,948.60,
Government Equalities Office,Equality and Human Rights Commission,19/10/2011,Agency Staff,Regulation - Policy and Ops - Public,Odgers Interim,iPOS Invoice 42499,23865.00,
Government Equalities Office,Equality and Human Rights Commission,11/10/2011,Agency Staff,Corporate Management - People,Penna,iPOS Invoice 42318,12804.00,
Government Equalities Office,Equality and Human Rights Commission,11/10/2011,Agency Staff,Corporate Management - Finance,Penna,iPOS Invoice 42339,18360.00,
Government Equalities Office,Equality and Human Rights Commission,25/10/2011,Agency Staff,Intelligence & Engagement - External Affairs,Reed Employment,iPOS Invoice 42586,594.62,
Government Equalities Office,Equality and Human Rights Commission,11/10/2011,Agency Staff,Intelligence & Engagement - External Affairs,Reed Employment,iPOS Invoice 42375,844.99,
Government Equalities Office,Equality and Human Rights Commission,11/10/2011,Agency Staff,Intelligence & Engagement - External Affairs,Reed Employment,iPOS Invoice 42376,876.29,
Government Equalities Office,Equality and Human Rights Commission,11/10/2011,Agency Staff,Corporate Management - Business Planning,Reed Employment,iPOS Invoice 42370,1248.00,
Government Equalities Office,Equality and Human Rights Commission,11/10/2011,Agency Staff,Corporate Management - Business Planning,Reed Employment,iPOS Invoice 42373,1872.00,
Government Equalities Office,Equality and Human Rights Commission,11/10/2011,Agency Staff,Corporate Management - Business Planning,Reed Employment,iPOS Invoice 42374,1872.00,
Government Equalities Office,Equality and Human Rights Commission,11/10/2011,Agency Staff,Corporate Management - Business Planning,Reed Employment,iPOS Invoice 42371,1872.00,
Government Equalities Office,Equality and Human Rights Commission,11/10/2011,Agency Staff,Corporate Management - Business Planning,Reed Employment,iPOS Invoice 42372,1872.00,
Government Equalities Office,Equality and Human Rights Commission,25/10/2011,Agency Staff,Corporate Management - Business Planning,Reed Employment,iPOS Invoice 42587,1872.00,
Government Equalities Office,Equality and Human Rights Commission,25/10/2011,Agency Staff,Corporate Management - Business Planning,Reed Employment,iPOS Invoice 42588,1872.00,
Government Equalities Office,Equality and Human Rights Commission,11/10/2011,Agency Staff,Corporate Management - People,Resource Innovations,iPOS Invoice 42316,13110.00,
Government Equalities Office,Equality and Human Rights Commission,11/10/2011,Agency Staff,Corporate Management - Corporate Governance,Venn Group,iPOS Invoice 42309,2641.32,
Government Equalities Office,Equality and Human Rights Commission,11/10/2011,Agency Staff,Corporate Management - Corporate Governance,Venn Group,iPOS Invoice 42320,2641.32,
Government Equalities Office,Equality and Human Rights Commission,25/10/2011,Agency Staff,Corporate Management - Corporate Governance,Venn Group,iPOS Invoice 42551,2641.32,
Government Equalities Office,Equality and Human Rights Commission,19/10/2011,Agency Staff,Intelligence & Engagement - Group Directorate,Veredus,iPOS Invoice 42475,5865.00,
Government Equalities Office,Equality and Human Rights Commission,11/10/2011,Agency Staff,Intelligence & Engagement - Group Directorate,Veredus,iPOS Invoice 42313,11730.00,
Government Equalities Office,Equality and Human Rights Commission,25/10/2011,Agency Staff,Corporate Management - Finance,Veredus,iPOS Invoice 42574,14076.00,
Government Equalities Office,Equality and Human Rights Commission,19/10/2011,Agency Staff,Corporate Management - People,Veredus,iPOS Invoice 42478,16146.00,
Government Equalities Office,Equality and Human Rights Commission,11/10/2011,Agency Staff,Corporate Management - Turnaround,Veredus,iPOS Invoice 42337,16422.00,
Government Equalities Office,Equality and Human Rights Commission,19/10/2011,Agency Staff,Intelligence & Engagement - External Affairs,Veredus,iPOS Invoice 42476,17760.00,
Government Equalities Office,Equality and Human Rights Commission,19/10/2011,Agency Staff,Corporate Management - Finance,Veredus,iPOS Invoice 42466,20298.00,
Government Equalities Office,Equality and Human Rights Commission,25/10/2011,Agency Staff,Corporate Management - Group Directorate,Veredus,iPOS Invoice 42549,21600.00,
Government Equalities Office,Equality and Human Rights Commission,11/10/2011,Agency Staff,Intelligence & Engagement - External Affairs,Xchangeteam Ltd,iPOS Invoice 42322,662.40,
Government Equalities Office,Equality and Human Rights Commission,19/10/2011,Agency Staff,Intelligence & Engagement - External Affairs,Xchangeteam Ltd,iPOS Invoice 42429,662.40,
Government Equalities Office,Equality and Human Rights Commission,19/10/2011,Agency Staff,Intelligence & Engagement - External Affairs,Xchangeteam Ltd,iPOS Invoice 42427,1324.80,
Government Equalities Office,Equality and Human Rights Commission,05/10/2011,Alternative Formats,Regulation - Disability Programme,Corporate Document Services,iPOS Invoice 42215,1865.60,
Government Equalities Office,Equality and Human Rights Commission,11/10/2011,ATW - Agency/Staff Costs,Corporate Management - Finance,Edenbrown,iPOS Invoice 42383,520.80,
Government Equalities Office,Equality and Human Rights Commission,11/10/2011,ATW - Agency/Staff Costs,Corporate Management - Finance,Edenbrown,iPOS Invoice 42306,528.24,
Government Equalities Office,Equality and Human Rights Commission,11/10/2011,ATW - Agency/Staff Costs,Corporate Management - Finance,Edenbrown,iPOS Invoice 42302,705.89,
Government Equalities Office,Equality and Human Rights Commission,11/10/2011,ATW - Agency/Staff Costs,Corporate Management - Finance,Edenbrown,iPOS Invoice 42324,705.89,
Government Equalities Office,Equality and Human Rights Commission,11/10/2011,ATW - Agency/Staff Costs,Corporate Management - Finance,Edenbrown,iPOS Invoice 42382,705.89,
Government Equalities Office,Equality and Human Rights Commission,11/10/2011,ATW - Agency/Staff Costs,Corporate Management - Finance,Linda Taylor Associates,iPOS Invoice 42314,503.28,
Government Equalities Office,Equality and Human Rights Commission,11/10/2011,ATW - Agency/Staff Costs,Corporate Management - Finance,Linda Taylor Associates,iPOS Invoice 42396,503.28,
Government Equalities Office,Equality and Human Rights Commission,19/10/2011,ATW - Agency/Staff Costs,Corporate Management - Finance,Linda Taylor Associates,iPOS Invoice 42509,503.28,
Government Equalities Office,Equality and Human Rights Commission,25/10/2011,ATW - Agency/Staff Costs,Corporate Management - Finance,Linda Taylor Associates,iPOS Invoice 42591,503.28,
Government Equalities Office,Equality and Human Rights Commission,19/10/2011,ATW - Non Staff Expenditure,Corporate Management - Finance,Ace Taxis,iPOS Invoice 42528,1052.46,
Government Equalities Office,Equality and Human Rights Commission,25/10/2011,ATW - Non Staff Expenditure,Corporate Management - Finance,Bee Communications,iPOS Invoice 42568,504.72,
Government Equalities Office,Equality and Human Rights Commission,05/10/2011,ATW - Non Staff Expenditure,Corporate Management - Finance,Gillian Croft,iPOS Invoice 42239,700.00,
Government Equalities Office,Equality and Human Rights Commission,11/10/2011,ATW - Non Staff Expenditure,Corporate Management - Finance,Rachel Nickless,iPOS Invoice 42300,2990.95,
Government Equalities Office,Equality and Human Rights Commission,05/10/2011,ATW - Non Staff Expenditure,Corporate Management - Finance,Wendy Osmond,iPOS Invoice 42238,970.00,
Government Equalities Office,Equality and Human Rights Commission,19/10/2011,ATW - Non Staff Expenditure,Corporate Management - Finance,Radio Taxis Group Limited,iPOS Invoice 42516,539.69,
Government Equalities Office,Equality and Human Rights Commission,19/10/2011,ATW - Non Staff Expenditure,Corporate Management - Finance,Radio Taxis Group Limited,iPOS Invoice 42515,636.51,
Government Equalities Office,Equality and Human Rights Commission,11/10/2011,ATW - Non Staff Expenditure,Corporate Management - Finance,Swan Private Hire,iPOS Invoice 42047,658.08,
Government Equalities Office,Equality and Human Rights Commission,11/10/2011,Barristers Fees,Legal/Monitoring - Casework,Robin Allen QC,iPOS Invoice 42363,1170.00,
Government Equalities Office,Equality and Human Rights Commission,05/10/2011,Barristers Fees,Legal/Monitoring - Enforcement,Robin Allen QC,iPOS Invoice 42179,5400.00,
Government Equalities Office,Equality and Human Rights Commission,11/10/2011,Barristers Fees,Legal/Monitoring - Enforcement,Robin Allen QC,iPOS Invoice 42334,12042.00,
Government Equalities Office,Equality and Human Rights Commission,19/10/2011,Barristers Fees,Corporate Management - Corporate Governance,Thomas Brown,iPOS Invoice 42487,1362.00,
Government Equalities Office,Equality and Human Rights Commission,25/10/2011,Barristers Fees,Legal/Monitoring - Casework,Faculty Services Limited,iPOS Invoice 42569,1440.00,
Government Equalities Office,Equality and Human Rights Commission,19/10/2011,Barristers Fees,Regulation - Foresight,Caoilfhionn Gallagher,iPOS Invoice 42450,12600.00,
Government Equalities Office,Equality and Human Rights Commission,19/10/2011,Barristers Fees,Regulation - Foresight,Alex Gask,iPOS Invoice 42451,3600.00,
Government Equalities Office,Equality and Human Rights Commission,25/10/2011,Barristers Fees,Regulation - Foresight,Alex Gask,iPOS Invoice 42264,3780.00,
Government Equalities Office,Equality and Human Rights Commission,19/10/2011,Barristers Fees,Regulation - Foresight,Alison Gerry,iPOS Invoice 42452,1200.00,
Government Equalities Office,Equality and Human Rights Commission,19/10/2011,Barristers Fees,Regulation - Foresight,Alison Gerry,iPOS Invoice 42453,3000.00,
Government Equalities Office,Equality and Human Rights Commission,19/10/2011,Barristers Fees,Regulation - Foresight,Jane Gordon,iPOS Invoice 42413,7020.00,
Government Equalities Office,Equality and Human Rights Commission,19/10/2011,Barristers Fees,Corporate Management - Corporate Governance,John Horan,iPOS Invoice 42488,1476.00,
Government Equalities Office,Equality and Human Rights Commission,11/10/2011,Barristers Fees,Legal/Monitoring - Enforcement,Ms Dee Masters,iPOS Invoice 42335,6702.00,
Government Equalities Office,Equality and Human Rights Commission,19/10/2011,Barristers Fees,Corporate Management - Corporate Governance,Aileen McColgan,iPOS Invoice 42459,1566.00,
Government Equalities Office,Equality and Human Rights Commission,19/10/2011,Barristers Fees,Corporate Management - Corporate Governance,Aileen McColgan,iPOS Invoice 42514,3564.00,
Government Equalities Office,Equality and Human Rights Commission,11/10/2011,Barristers Fees,Legal/Monitoring - Casework,Ben McCormack,iPOS Invoice 42362,600.00,
Government Equalities Office,Equality and Human Rights Commission,05/10/2011,Barristers Fees,Legal/Monitoring - Enforcement,Hanif Mussa,iPOS Invoice 42195,7346.40,
Government Equalities Office,Equality and Human Rights Commission,19/10/2011,Barristers Fees,Legal/Monitoring - Enforcement,Tim Owen QC,iPOS Invoice 42465,2712.00,
Government Equalities Office,Equality and Human Rights Commission,05/10/2011,Barristers Fees,Legal - Legal Policy,Melanie Plimmer,iPOS Invoice 42198,3060.00,
Government Equalities Office,Equality and Human Rights Commission,19/10/2011,Barristers Fees,Legal/Monitoring - Enforcement,Elizabeth Prochaska,iPOS Invoice 42436,2466.00,
Government Equalities Office,Equality and Human Rights Commission,19/10/2011,Barristers Fees,Legal/Monitoring - Enforcement,Elizabeth Prochaska,iPOS Invoice 42437,2706.00,
Government Equalities Office,Equality and Human Rights Commission,19/10/2011,Barristers Fees,Legal/Monitoring - Casework,Jane Russell,iPOS Invoice 42402,2944.00,
Government Equalities Office,Equality and Human Rights Commission,25/10/2011,Barristers Fees,Regulation - Foresight,Marc Willers,iPOS Invoice 42584,1632.00,
Government Equalities Office,Equality and Human Rights Commission,19/10/2011,BT Non Managed Services,Corporate Management - ICT,BT Onebillplus,iPOS Invoice 42480,1587.10,
Government Equalities Office,Equality and Human Rights Commission,05/10/2011,Business Apps Software licence purchase (Non-cap),Corporate Management - Turnaround,Total Computer,iPOS Invoice 42188,2683.20,
Government Equalities Office,Equality and Human Rights Commission,11/10/2011,Business Apps Software maintenance and support,Corporate Management - ICT,Bottomline Technologies,iPOS Invoice 42393,630.96,
Government Equalities Office,Equality and Human Rights Commission,11/10/2011,Catering,Regulation - Policy and Ops - Public,Coin St Community Builders,iPOS Invoice 42092,2445.00,
Government Equalities Office,Equality and Human Rights Commission,11/10/2011,Childcare Voucher Scheme,Corporate Management - People,Accor Services,iPOS Invoice 42394,4617.81,
Government Equalities Office,Equality and Human Rights Commission,11/10/2011,Cleaning Services,Wales Directorate,Keith Brooks,iPOS Invoice 42330,990.00,
Government Equalities Office,Equality and Human Rights Commission,19/10/2011,Cleaning Services,Corporate Management - Buildings,Caledonian Office & Window Cleaning,iPOS Invoice 42350,1074.96,
Government Equalities Office,Equality and Human Rights Commission,05/10/2011,Cleaning Services,Corporate Management - Buildings,Carroll Cleaning Company Ltd,iPOS Invoice 42176,3026.98,
Government Equalities Office,Equality and Human Rights Commission,11/10/2011,Cleaning Services,Corporate Management - Buildings,Carroll Cleaning Company Ltd,iPOS Invoice 42349,3026.98,
Government Equalities Office,Equality and Human Rights Commission,11/10/2011,Cleaning Services,Corporate Management - Buildings,JSM Contract Cleaning Services,iPOS Invoice 42348,660.00,
Government Equalities Office,Equality and Human Rights Commission,19/10/2011,Cleaning Services,Corporate Management - Buildings,LAFAN CYF,iPOS Invoice 42419,5233.20,
Government Equalities Office,Equality and Human Rights Commission,19/10/2011,Cleaning Services,Corporate Management - Buildings,LAFAN CYF,iPOS Invoice 42420,5253.36,
Government Equalities Office,Equality and Human Rights Commission,25/10/2011,Cleaning Services,Corporate Management - Buildings,OCS Group Limited,iPOS Invoice 42599,2101.48,
Government Equalities Office,Equality and Human Rights Commission,19/10/2011,Client Support,Statutory Committee - Wales,Cymen Cyf,iPOS Invoice 42406,541.20,
Government Equalities Office,Equality and Human Rights Commission,11/10/2011,Client Support,Scotland - Directorate,Marianne Cunningham (MAZE),iPOS Invoice 42329,770.00,
Government Equalities Office,Equality and Human Rights Commission,19/10/2011,Client Support,Statutory Committee - Wales,Prysg Translation Service,iPOS Invoice 42498,520.34,
Government Equalities Office,Equality and Human Rights Commission,19/10/2011,Commissioners' Fees,Statutory Committee - Wales,Betsi Cadwaladr University Health Board,iPOS Invoice 42299,750.00,
Government Equalities Office,Equality and Human Rights Commission,05/10/2011,Conciliation,Legal/Monitoring - Casework,Mediation Works,iPOS Invoice 42221,9295.44,
Government Equalities Office,Equality and Human Rights Commission,11/10/2011,Conciliation,Legal/Monitoring - Casework,Mediation Works,iPOS Invoice 42285,45000.00,
Government Equalities Office,Equality and Human Rights Commission,25/10/2011,Conference Interpreters Expenses,Regulation - Disability Programme,Interpreter Booking Services Ltd,iPOS Invoice 42538,746.40,
Government Equalities Office,Equality and Human Rights Commission,12/10/2011,Conference Interpreters Expenses,Scotland - Directorate,Susie Lithman-Romeo,iPOS Invoice 42364,657.98,
Government Equalities Office,Equality and Human Rights Commission,11/10/2011,Conference Interpreters Expenses,Statutory Committee - Disability,Sttrs Direct,iPOS Invoice 42287,1050.96,
Government Equalities Office,Equality and Human Rights Commission,05/10/2011,Conference Set Up/Equipment Costs,Statutory Committee - Disability,Audio & Interpretation Services Ltd,iPOS Invoice 42229,645.60,
Government Equalities Office,Equality and Human Rights Commission,05/10/2011,Conference Set Up/Equipment Costs,Regulation - Policy and Ops - Public,Link Exhibition Services,iPOS Invoice 42194,672.00,
Government Equalities Office,Equality and Human Rights Commission,19/10/2011,Conference Set Up/Equipment Costs,Regulation - Disability Programme,TSL Education Ltd,iPOS Invoice 42405,1080.00,
Government Equalities Office,Equality and Human Rights Commission,11/10/2011,Conference Venue Costs,Regulation - Policy and Ops - Public,CIPD,iPOS Invoice 42269,3283.20,
Government Equalities Office,Equality and Human Rights Commission,11/10/2011,Consultancy Costs,Regulation - Group Directorate,The Berkeley Partnership LLP,iPOS Invoice 42380,19710.00,
Government Equalities Office,Equality and Human Rights Commission,11/10/2011,Corporate Membership Fees,Corporate Management - People,The Whitehall & Industry Group (WIG),iPOS Invoice 42301,3555.00,
Government Equalities Office,Equality and Human Rights Commission,05/10/2011,Couriers,Corporate Management - Buildings,E-Courier (UK) Ltd,iPOS Invoice 42205,528.37,
Government Equalities Office,Equality and Human Rights Commission,11/10/2011,Disaster Recovery,Corporate Management - ICT,IBM,iPOS Invoice 42390,34514.40,
Government Equalities Office,Equality and Human Rights Commission,19/10/2011,Electricity,Corporate Management - Buildings,Norton Rose,iPOS Invoice 42416,956.69,
Government Equalities Office,Equality and Human Rights Commission,11/10/2011,Electricity,Corporate Management - Buildings,Norton Rose,iPOS Invoice 42272,3285.58,
Government Equalities Office,Equality and Human Rights Commission,25/10/2011,Electricity,Corporate Management - Buildings,Prudential Prop Invest Manager,iPOS Invoice 42619,564.13,
Government Equalities Office,Equality and Human Rights Commission,11/10/2011,Equipment Rental,Commissioners Office,Audio & Interpretation Services Ltd,iPOS Invoice 42276,645.60,
Government Equalities Office,Equality and Human Rights Commission,11/10/2011,External Printing,Commissioners Office,Hobs Reprographics,iPOS Invoice 42279,634.18,
Government Equalities Office,Equality and Human Rights Commission,11/10/2011,External Printing,Commissioners Office,Hobs Reprographics,iPOS Invoice 42284,873.23,
Government Equalities Office,Equality and Human Rights Commission,11/10/2011,External Printing,Commissioners Office,Hobs Reprographics,iPOS Invoice 42281,905.47,
Government Equalities Office,Equality and Human Rights Commission,11/10/2011,External Printing,Statutory Committee - Disability,Hobs Reprographics,iPOS Invoice 42365,1267.06,
Government Equalities Office,Equality and Human Rights Commission,25/10/2011,Fit Out Costs,Corporate Management - Buildings,Contract Services R&R Limited,iPOS Invoice 42617,25703.21,
Government Equalities Office,Equality and Human Rights Commission,05/10/2011,Fit Out Costs,Corporate Management - Buildings,King Sturge LLP,iPOS Invoice 42253,20696.53,
Government Equalities Office,Equality and Human Rights Commission,05/10/2011,Fit Out Costs,Corporate Management - Buildings,King Sturge LLP,iPOS Invoice 42243,23112.00,
Government Equalities Office,Equality and Human Rights Commission,11/10/2011,Franking Machine Rental,Wales Directorate,Neopost Finance Ltd Quarterly Rentals only,iPOS Invoice 42298,537.60,
Government Equalities Office,Equality and Human Rights Commission,20/10/2011,Grant Funding Program,Corporate Management - Grants Unit,Bonny Downs Community Association,201210001,8541.58,
Government Equalities Office,Equality and Human Rights Commission,20/10/2011,Grant Funding Program,Corporate Management - Grants Unit,Cardiff Gypsy & Traveller Project,201210002,8700.00,
Government Equalities Office,Equality and Human Rights Commission,20/10/2011,Grant Funding Program,Corporate Management - Grants Unit,Derbyshire Friend,201210003,11157.96,
Government Equalities Office,Equality and Human Rights Commission,06/10/2011,Grant Funding Program,Corporate Managament - Grants,Derbyshire Friend,201210004,18812.16,
Government Equalities Office,Equality and Human Rights Commission,20/10/2011,Grant Funding Program,Corporate Management - Grants Unit,"Friends, Families and Travellers",201210005,8105.30,
Government Equalities Office,Equality and Human Rights Commission,14/10/2011,Grant Funding Program,Corporate Managament - Grants,Haringey Rec,201210006,10000.00,
Government Equalities Office,Equality and Human Rights Commission,20/10/2011,Grant Funding Program,Corporate Management - Grants Unit,Human Rights & Equalities Charnwood,201210007,15682.50,
Government Equalities Office,Equality and Human Rights Commission,14/10/2011,Grant Funding Program,Corporate Managament - Grants,Ipswich and Suffolk REC,201210008,9150.00,
Government Equalities Office,Equality and Human Rights Commission,20/10/2011,Grant Funding Program,Corporate Management - Grants Unit,Leeds Gypsy and Traveller Exchange,201210009,14774.43,
Government Equalities Office,Equality and Human Rights Commission,20/10/2011,Grant Funding Program,Corporate Managament - Grants,Leicester Community Law Service,201210010,17500.00,
Government Equalities Office,Equality and Human Rights Commission,20/10/2011,Grant Funding Program,Corporate Management - Grants Unit,National Youth Theatre of Great Britain,201210011,1044.16,
Government Equalities Office,Equality and Human Rights Commission,20/10/2011,Grant Funding Program,Corporate Management - Grants Unit,National Youth Theatre of Great Britain,201210012,7813.38,
Government Equalities Office,Equality and Human Rights Commission,20/10/2011,Grant Funding Program,Corporate Managament - Grants,North West Kent REC,201210013,15000.00,
Government Equalities Office,Equality and Human Rights Commission,20/10/2011,Grant Funding Program,Corporate Management - Grants Unit,Sefton Council for Voluntary Services,201210014,16209.50,
Government Equalities Office,Equality and Human Rights Commission,20/10/2011,Grant Funding Program,Corporate Management - Grants Unit,Show Racism the Red Card,201210015,19301.40,
Government Equalities Office,Equality and Human Rights Commission,14/10/2011,Grant Funding Program,Corporate Managament - Grants,Slough Race Equality Council,201210016,6255.00,
Government Equalities Office,Equality and Human Rights Commission,06/10/2011,Grant Funding Program,Corporate Managament - Grants,Slough Race Equality Council,201210017,9382.50,
Government Equalities Office,Equality and Human Rights Commission,14/10/2011,Grant Funding Program,Corporate Managament - Grants,Slough Race Equality Council,201210018,10425.00,
Government Equalities Office,Equality and Human Rights Commission,20/10/2011,Grant Funding Program,Corporate Managament - Grants,Trafford Law Centre,201210019,1467.50,
Government Equalities Office,Equality and Human Rights Commission,20/10/2011,Grant Funding Program,Corporate Management - Grants Unit,Victim Support Cymru,201210020,8634.69,
Government Equalities Office,Equality and Human Rights Commission,19/10/2011,Health Referrals,Corporate Management - People,Road to Health Ltd,iPOS Invoice 42525,1017.60,
Government Equalities Office,Equality and Human Rights Commission,19/10/2011,Health Referrals,Corporate Management - People,Road to Health Ltd,iPOS Invoice 42526,1017.60,
Government Equalities Office,Equality and Human Rights Commission,25/10/2011,IT Hardware Maintenance Contracts,Corporate Management - ICT,Danwood Contract Rentals,iPOS Invoice 42572,6684.74,
Government Equalities Office,Equality and Human Rights Commission,25/10/2011,IT Services,Corporate Management - ICT,DRS Ltd,iPOS Invoice 42534,-2137.20,
Government Equalities Office,Equality and Human Rights Commission,25/10/2011,IT Services,Corporate Management - ICT,DRS Ltd,iPOS Invoice 42537,2594.08,
Government Equalities Office,Equality and Human Rights Commission,25/10/2011,Learning And Development,Legal - Group Directorate,Bond Solon,iPOS Invoice 42604,522.00,
Government Equalities Office,Equality and Human Rights Commission,25/10/2011,Learning And Development,Legal - Group Directorate,Bond Solon,iPOS Invoice 42605,522.00,
Government Equalities Office,Equality and Human Rights Commission,25/10/2011,Learning And Development,Legal - Group Directorate,Bond Solon,iPOS Invoice 42606,522.00,
Government Equalities Office,Equality and Human Rights Commission,25/10/2011,Learning And Development,Legal - Group Directorate,Bond Solon,iPOS Invoice 42607,522.00,
Government Equalities Office,Equality and Human Rights Commission,25/10/2011,Learning And Development,Legal - Group Directorate,Bond Solon,iPOS Invoice 42608,522.00,
Government Equalities Office,Equality and Human Rights Commission,25/10/2011,Learning And Development,Legal - Group Directorate,Bond Solon,iPOS Invoice 42609,522.00,
Government Equalities Office,Equality and Human Rights Commission,25/10/2011,Learning And Development,Legal - Group Directorate,Bond Solon,iPOS Invoice 42610,522.00,
Government Equalities Office,Equality and Human Rights Commission,25/10/2011,Learning And Development,Legal - Group Directorate,Bond Solon,iPOS Invoice 42611,522.00,
Government Equalities Office,Equality and Human Rights Commission,25/10/2011,Learning And Development,Legal - Group Directorate,Bond Solon,iPOS Invoice 42612,522.00,
Government Equalities Office,Equality and Human Rights Commission,25/10/2011,Learning And Development,Legal - Group Directorate,Bond Solon,iPOS Invoice 42613,522.00,
Government Equalities Office,Equality and Human Rights Commission,19/10/2011,Learning And Development,Scotland - Directorate,Centre For Accessible Environments,iPOS Invoice 42449,655.00,
Government Equalities Office,Equality and Human Rights Commission,11/10/2011,Learning And Development,Corporate Management - People,CMI Enterprises Ltd,iPOS Invoice 42268,654.12,
Government Equalities Office,Equality and Human Rights Commission,11/10/2011,Learning And Development,Legal - Group Directorate,De Montfort University,iPOS Invoice 42391,3785.00,
Government Equalities Office,Equality and Human Rights Commission,25/10/2011,Learning And Development,Corporate Management - People,LMD Learning Solutions Ltd,iPOS Invoice 42540,829.57,
Government Equalities Office,Equality and Human Rights Commission,25/10/2011,Learning And Development,Scotland - Directorate,National Union of Journalists,iPOS Invoice 42533,897.50,
Government Equalities Office,Equality and Human Rights Commission,11/10/2011,Learning And Development,Scotland - Directorate,University of Strathclyde,iPOS Invoice 42277,2000.00,
Government Equalities Office,Equality and Human Rights Commission,19/10/2011,Learning And Development,Corporate Management - People,The Whitehall & Industry Group (WIG),iPOS Invoice 42511,540.00,
Government Equalities Office,Equality and Human Rights Commission,19/10/2011,Library Costs,Corporate Management - Buildings,Sue Hill Recruitment & Services Ltd,iPOS Invoice 42430,2150.70,
Government Equalities Office,Equality and Human Rights Commission,19/10/2011,Maintenance Contracts,Corporate Management - Buildings,Docklands Handyman Limited,iPOS Invoice 42507,612.00,
Government Equalities Office,Equality and Human Rights Commission,11/10/2011,Marketing,Intelligence & Engagement - External Affairs,Emailvision (UK) Ltd,iPOS Invoice 42267,953.63,
Government Equalities Office,Equality and Human Rights Commission,11/10/2011,Media Monitoring,Intelligence & Engagement - External Affairs,Metrica,iPOS Invoice 42395,8023.80,
Government Equalities Office,Equality and Human Rights Commission,05/10/2011,Office Reorganisation,Corporate Management - Buildings,Act3 Projects,iPOS Invoice 42240,2168.17,
Government Equalities Office,Equality and Human Rights Commission,11/10/2011,Payroll Processing Costs,Corporate Management - Finance,Ceridian Centrefile Ltd,iPOS Invoice 42361,2424.66,
Government Equalities Office,Equality and Human Rights Commission,19/10/2011,Pensions Administration,Corporate Management - Finance,Bestrustees,iPOS Invoice 42415,4500.00,
Government Equalities Office,Equality and Human Rights Commission,25/10/2011,Pensions Administration,Central Provisional Project Budget,DWP,iPOS Invoice 42542,1836.96,
Government Equalities Office,Equality and Human Rights Commission,25/10/2011,Pensions Administration,Corporate Management - Finance,DWP,iPOS Invoice 42541,2277.62,
Government Equalities Office,Equality and Human Rights Commission,19/10/2011,Pensions Administration,Corporate Management - Finance,DWP,iPOS Invoice 42408,6270.52,
Government Equalities Office,Equality and Human Rights Commission,11/10/2011,Postage,Regulation - Policy and Ops - Private,Association of Labour Providers,iPOS Invoice 42385,-916.97,
Government Equalities Office,Equality and Human Rights Commission,11/10/2011,Postage,Regulation - Policy and Ops - Private,Association of Labour Providers,iPOS Invoice 42385,916.97,
Government Equalities Office,Equality and Human Rights Commission,05/10/2011,Practising Certificates,Scotland - Directorate,The Law Society Of Scotland,iPOS Invoice 42214,2205.00,
Government Equalities Office,Equality and Human Rights Commission,05/10/2011,Premises prepayments,Corporate Management - Buildings,DWP,iPOS Invoice 42174,-5442.48,
Government Equalities Office,Equality and Human Rights Commission,05/10/2011,Premises prepayments,Corporate Management - Buildings,DWP,iPOS Invoice 42175,8204.22,
Government Equalities Office,Equality and Human Rights Commission,05/10/2011,Premises prepayments,Corporate Management - Buildings,Norton Rose,iPOS Invoice 42251,4076.16,
Government Equalities Office,Equality and Human Rights Commission,25/10/2011,Premises prepayments,Corporate Management - Buildings,Norton Rose,iPOS Invoice 42486,4076.16,
Government Equalities Office,Equality and Human Rights Commission,11/10/2011,Premises prepayments,Corporate Management - Buildings,Norton Rose,iPOS Invoice 42271,35699.09,
Government Equalities Office,Equality and Human Rights Commission,11/10/2011,Property Insurance,Corporate Management - Buildings,BNP Paribas Real Estate,iPOS Invoice 42274,2585.56,
Government Equalities Office,Equality and Human Rights Commission,19/10/2011,Property Insurance,Corporate Management - Buildings,Prudential Prop Invest Manager,iPOS Invoice 42432,593.63,
Government Equalities Office,Equality and Human Rights Commission,19/10/2011,Property Insurance,Corporate Management - Buildings,Prudential Prop Invest Manager,iPOS Invoice 42433,931.78,
Government Equalities Office,Equality and Human Rights Commission,05/10/2011,Property Insurance,Corporate Management - Buildings,Prudential Prop Invest Manager,iPOS Invoice 42244,1348.80,
Government Equalities Office,Equality and Human Rights Commission,05/10/2011,Property Insurance,Corporate Management - Buildings,Prudential Prop Invest Manager,iPOS Invoice 42247,1406.96,
Government Equalities Office,Equality and Human Rights Commission,19/10/2011,Property Insurance,Corporate Management - Buildings,Prudential Prop Invest Manager,iPOS Invoice 42434,1406.96,
Government Equalities Office,Equality and Human Rights Commission,05/10/2011,Property Insurance,Corporate Management - Buildings,Prudential Prop Invest Manager,iPOS Invoice 42245,2117.12,
Government Equalities Office,Equality and Human Rights Commission,05/10/2011,Property Insurance,Corporate Management - Buildings,Prudential Prop Invest Manager,iPOS Invoice 42246,2208.42,
Government Equalities Office,Equality and Human Rights Commission,19/10/2011,Property Insurance,Corporate Management - Buildings,Prudential Prop Invest Manager,iPOS Invoice 42435,2208.42,
Government Equalities Office,Equality and Human Rights Commission,05/10/2011,Publications Design,Scotland - Directorate,Epigram,iPOS Invoice 42249,1138.00,
Government Equalities Office,Equality and Human Rights Commission,05/10/2011,Publications Design,Regulation - Disability Programme,Epigram,iPOS Invoice 42250,15453.88,
Government Equalities Office,Equality and Human Rights Commission,05/10/2011,Publications Editing/Proof Reading,Statutory Committee - Wales,Glocal Media Ltd,iPOS Invoice 42259,799.80,
Government Equalities Office,Equality and Human Rights Commission,25/10/2011,Publications Editing/Proof Reading,Legal/Monitoring - Enforcement,Textmill,iPOS Invoice 42575,2690.00,
Government Equalities Office,Equality and Human Rights Commission,12/10/2011,Publications Photography & Video,Wales Directorate,Dischromatics Ltd,iPOS Invoice 42294,564.00,
Government Equalities Office,Equality and Human Rights Commission,11/10/2011,Publications Printing,Regulation - Policy and Ops - Private,Pelicanpress,iPOS Invoice 42366,760.00,
Government Equalities Office,Equality and Human Rights Commission,05/10/2011,Publications Printing,Statutory Committee - Wales,Pelicanpress,iPOS Invoice 42201,830.00,
Government Equalities Office,Equality and Human Rights Commission,05/10/2011,Publications Printing,Statutory Committee - Wales,Pelicanpress,iPOS Invoice 42199,1257.00,
Government Equalities Office,Equality and Human Rights Commission,05/10/2011,Publications Printing,Statutory Committee - Wales,Pelicanpress,iPOS Invoice 42200,1339.00,
Government Equalities Office,Equality and Human Rights Commission,05/10/2011,Publications Translation,Regulation - Disability Programme,The Big Word,iPOS Invoice 42193,548.28,
Government Equalities Office,Equality and Human Rights Commission,19/10/2011,Publications Translation,Regulation - Policy and Ops - Private,The Big Word,iPOS Invoice 42440,1170.00,
Government Equalities Office,Equality and Human Rights Commission,11/10/2011,Rail Travel,Corporate Management - Finance,Penna,iPOS Invoice 42340,1574.40,
Government Equalities Office,Equality and Human Rights Commission,19/10/2011,Rail Travel,Corporate Management - People,Veredus,iPOS Invoice 42477,513.59,
Government Equalities Office,Equality and Human Rights Commission,19/10/2011,Rail Travel,Corporate Management - Finance,Veredus,iPOS Invoice 42424,899.28,
Government Equalities Office,Equality and Human Rights Commission,11/10/2011,Records Storage Costs,Corporate Management - Information Management,Iron Mountain (UK) Ltd,iPOS Invoice 42386,2997.10,
Government Equalities Office,Equality and Human Rights Commission,05/10/2011,Rent,Corporate Management - Buildings,Mwb Business Exchange Centres,iPOS Invoice 42254,2076.00,
Government Equalities Office,Equality and Human Rights Commission,05/10/2011,Rent,Corporate Management - Buildings,Mwb Business Exchange Centres,iPOS Invoice 42255,2076.00,
Government Equalities Office,Equality and Human Rights Commission,11/10/2011,Research,Scotland - Directorate,Carole Ewart Communications,iPOS Invoice 42384,2125.00,
Government Equalities Office,Equality and Human Rights Commission,05/10/2011,Researchers Fees,Wales Directorate,Carol Owen,iPOS Invoice 42210,1050.00,
Government Equalities Office,Equality and Human Rights Commission,05/10/2011,Seconded Staff,Scotland - Directorate,Glasgow Centre for Inclusive Living,iPOS Invoice 42209,2662.67,
Government Equalities Office,Equality and Human Rights Commission,25/10/2011,Seconded Staff,Scotland - Directorate,Glasgow Centre for Inclusive Living,iPOS Invoice 42536,2662.67,
Government Equalities Office,Equality and Human Rights Commission,25/10/2011,Seconded Staff,Corporate Management - Turnaround,Highways Agency,iPOS Invoice 42545,622.83,
Government Equalities Office,Equality and Human Rights Commission,05/10/2011,Security,Corporate Management - Buildings,Key Control Services Ltd,iPOS Invoice 42230,882.00,
Government Equalities Office,Equality and Human Rights Commission,11/10/2011,Solicitors Fees,Legal/Monitoring - Casework,BINDMANS LLP,iPOS Invoice 42290,1953.00,
Government Equalities Office,Equality and Human Rights Commission,12/10/2011,Solicitors Fees,Legal/Monitoring - Casework,Ison Harrison Limited,iPOS Invoice 42289,6185.01,
Government Equalities Office,Equality and Human Rights Commission,11/10/2011,Solicitors Fees,Legal/Monitoring - Casework,Russell Jones & Walker,iPOS Invoice 42291,2400.00,
Government Equalities Office,Equality and Human Rights Commission,19/10/2011,Staff Support,Commissioners Office,Office Chairs UK,iPOS Invoice 42489,715.51,
Government Equalities Office,Equality and Human Rights Commission,19/10/2011,Staff Support,Intelligence & Engagement - Helpline,Merrill Legal Solutions,iPOS Invoice 42387,728.71,
Government Equalities Office,Equality and Human Rights Commission,05/10/2011,Travel Costs,Corporate Management - Buildings,Carlson Wagonlit Travel,201210026,4857.20,
Government Equalities Office,Equality and Human Rights Commission,05/10/2011,Travel Costs,Corporate Management - Buildings,Carlson Wagonlit Travel,201210027,5610.81,
Government Equalities Office,Equality and Human Rights Commission,19/10/2011,Travel Costs,Corporate Management - Buildings,Carlson Wagonlit Travel,201210028,5793.97,
Government Equalities Office,Equality and Human Rights Commission,19/10/2011,Travel Costs,Corporate Management - Buildings,Carlson Wagonlit Travel,201210029,7226.40,
Government Equalities Office,Equality and Human Rights Commission,19/10/2011,Website Hosting Costs,Intelligence & Engagement - External Affairs,Precedent Communications,iPOS Invoice 42520,12168.00,
Government Equalities Office,Equality and Human Rights Commission,06/10/2011,Pension Charges,Corporate Management - Finance,Scottish Widows,Pension,82624.92,
Government Equalities Office,Equality and Human Rights Commission,31/10/2011,Procurement Card,Corporate Management ,Lloyds Bank,GPC,620.12,
